bitfinex/quotes_SOLUSD_20250830
["timestamp","ask_amount","ask_price","bid_price","bid_amount"]
[1756569822434,0.06,200.96,200.95,44.05636227]
[1756569822647,0.06,200.96,200.95,48.74311919]
[1756569823844,0.06,200.96,200.95,63.0087132]
[1756569824855,0.06,200.96,200.95,62.3387132]
[1756569827963,0.06,200.96,200.95,118.6387132]
[1756569828848,0.06,200.96,200.95,119.3087132]
[1756569829241,1e-08,200.96,200.95,119.3087132]
[1756569830758,1e-08,200.96,200.95,121.3030792]
[1756569831162,1e-08,200.96,200.95,115.88632228]
[1756569831339,1e-08,200.96,200.95,120.5730792]
[1756569832049,1e-08,200.96,200.95,242.5730792]
[1756569832739,1e-08,200.96,200.95,208.53341933]
[1756569832939,1e-08,200.96,200.95,247.55341933]
[1756569834264,1e-08,200.96,200.95,208.53341933]
[1756569834563,1e-08,200.96,200.95,247.55341933]
[1756569836269,1e-08,200.96,200.95,247.53341933]
[1756569838759,0.70000001,200.96,200.95,118.5187132]
[1756569839338,0.70000001,200.96,200.95,100.23636227]
[1756569839552,0.70000001,200.96,200.95,61.27636227]
[1756569839867,0.70000001,200.96,200.95,100.21636227]
[1756569840575,0.70000001,200.96,200.95,61.27636227]
[1756569840749,0.70000001,200.96,200.95,100.21636227]
[1756569841074,0.70000001,200.96,200.95,61.27636227]
[1756569841286,0.70000001,200.96,200.95,56.3]
[1756569841570,4.41944828,200.96,200.95,95.24]
[1756569842754,1e-08,200.96,200.95,119.1787132]
[1756569843163,1e-08,200.96,200.95,118.49871328]
[1756569843375,1e-08,200.96,200.95,123.1854702]
[1756569846978,1e-08,200.96,200.95,118.47871328]
[1756569847283,1e-08,200.96,200.95,123.1654702]
[1756569848083,1e-08,200.96,200.95,245.1654702]
[1756569848479,1e-08,200.96,200.95,206.2454702]
[1756569848662,1e-08,200.96,200.95,245.1454702]
[1756569848861,0.68000001,200.96,200.95,100.15636227]
[1756569849078,4.40950378,200.96,200.95,100.15636227]
[1756569849563,3.72950378,200.96,200.95,100.15636227]
[1756569849756,3.72950378,200.96,200.95,104.84311919]
[1756569850485,4.40950378,200.96,200.95,104.84311919]
[1756569850668,4.40950378,200.96,200.95,100.15636227]
[1756569851491,4.40950378,200.96,200.95,104.84311919]
[1756569852065,4.40950378,200.96,200.95,104.87311919]
[1756569852484,4.40950378,200.96,200.95,100.18636227]
[1756569852779,4.40950378,200.96,200.95,95.21]
[1756569852988,4.40950378,200.96,200.95,56.33]
[1756569853169,4.40950378,200.96,200.95,38.91]
[1756569854190,0.68000001,200.96,200.95,38.91]
[1756569854881,5.36675693,200.96,200.95,38.91]
[1756569855455,5.36675693,200.96,200.95,0.03]
[1756569861187,1e-08,200.96,200.95,4.71675692]
[1756569861564,1e-08,200.96,200.95,43.55675692]
[1756569861767,1e-08,200.96,200.95,38.87]
[1756569863288,1e-08,200.96,200.95,43.84636227]
[1756569864387,1e-08,200.96,200.95,0.03]
[1756569864565,0.68000001,200.96,200.95,38.89]
[1756569864770,0.68000001,200.96,200.95,0.03]
[1756569864991,5.36675693,200.96,200.95,0.03]
[1756569868997,0.68000001,200.96,200.95,0.03]
[1756569869213,5.36675693,200.96,200.95,0.03]
[1756569869672,5.36675693,200.96,200.95,38.87]
[1756569871877,5.36675693,200.96,200.95,0.03]
[1756569871878,10.34287157,200.96,200.95,0.03]
[1756569872079,14.52505687,200.96,200.95,0.03]
[1756569874495,9.83829995,200.96,200.95,0.03]
[1756569874697,14.52505687,200.96,200.95,0.03]
[1756569876101,9.54894223,200.96,200.95,0.03]
[1756569876398,5.36675693,200.96,200.95,0.03]
[1756569876601,5.36675693,200.96,200.95,5.40675692]
[1756569876602,1e-08,200.96,200.95,5.40675692]
[1756569877380,1e-08,200.96,200.95,10.38311919]
[1756569878096,1e-08,200.96,200.95,23.9787132]
[1756569878800,1e-08,200.96,200.95,24.47634942]
[1756569879181,1e-08,200.96,200.95,23.9787132]
[1756569881074,1e-08,200.96,200.95,49.9787132]
[1756569881279,0.06,201.01,200.98,39.59559401]
[1756569881510,0.06,201.01,201.0,18.28235093]
[1756569881678,0.06,201.01,201.0,23.2574753]
[1756569881874,0.06,201.01,201.0,25.9416423]
[1756569883978,0.06,201.01,201.0,142.56488538]
[1756569884288,0.06,201.01,201.0,147.2516423]
[1756569885704,0.06,201.01,201.0,40.834167]
[1756569885705,0.73,201.01,201.0,40.834167]
[1756569886807,0.73,201.01,200.95,26.0664997]
[1756569886808,5.41675692,201.01,200.99,38.84]
[1756569887005,5.35675692,201.0,200.99,38.84]
[1756569888514,5.35675692,201.0,200.98,43.526757]
[1756569888681,5.35675692,200.99,200.98,43.526757]
[1756569889107,5.35675692,200.99,200.98,38.84]
[1756569889406,5.35675692,200.99,200.97,38.84]
[1756569889606,5.35675692,200.98,200.97,38.84]
[1756569890279,5.35675692,200.98,200.95,38.87]
[1756569890477,26.0,200.99,200.95,38.87]
[1756569890478,4.68675692,200.96,200.95,38.87]
[1756569890682,5.35675692,200.96,200.95,38.87]
[1756569893489,4.68675692,200.96,200.95,38.87]
[1756569893694,5.35675692,200.96,200.95,38.87]
[1756569896312,5.35675692,200.96,200.95,0.03]
[1756569898809,0.67,200.96,200.95,0.03]
[1756569899012,5.35675692,200.96,200.95,0.03]
[1756569900202,10.33287156,200.96,200.95,0.03]
[1756569900708,40.51505686,200.96,200.95,0.03]
[1756569901013,10.33287156,200.96,200.95,0.03]
[1756569901511,31.35675692,200.96,200.95,0.03]
[1756569901900,36.33287156,200.96,200.95,0.03]
[1756569902916,10.33287156,200.96,200.95,0.03]
[1756569903284,31.64611464,200.96,200.95,0.03]
[1756569903490,10.33287156,200.96,200.95,0.03]
[1756569903704,36.33287156,200.96,200.95,0.03]
[1756569903926,10.33287156,200.96,200.95,0.03]
[1756569904210,36.33287156,200.96,200.95,0.03]
[1756569904412,10.33287156,200.96,200.95,0.03]
[1756569905117,36.33287156,200.96,200.95,0.03]
[1756569905310,10.33287156,200.96,200.95,0.03]
[1756569905511,36.33287156,200.96,200.95,0.03]
[1756569905813,40.51192493,200.96,200.95,0.03]
[1756569905997,42.50788293,200.96,200.95,0.03]
[1756569906184,16.50788293,200.96,200.95,0.03]
[1756569906402,0.67,200.96,200.95,0.03]
[1756569906730,5.35675692,200.96,200.95,0.03]
[1756569906910,4.68675692,200.96,200.95,0.03]
[1756569907817,30.68675692,200.96,200.95,0.03]
[1756569909527,4.68675692,200.96,200.95,0.03]
[1756569909727,4.68675692,200.98,200.95,0.72]
[1756569909929,4.74675692,200.99,200.95,4.716757]
[1756569910109,0.06,200.99,200.96,0.69]
[1756569910309,0.06,200.99,200.97,0.69]
[1756569910923,0.06,200.99,200.98,4.746757]
[1756569911512,5.41675692,200.99,200.95,0.03]
[1756569911719,4.68675692,200.96,200.95,0.03]
[1756569911928,4.68675692,200.96,200.95,4.716757]
[1756569913825,4.68675692,200.97,200.95,4.716757]
[1756569914030,5.35675692,200.97,200.95,4.716757]
[1756569914325,5.35675692,200.97,200.95,0.03]
[1756569915717,4.68675692,200.96,200.95,0.03]
[1756569916131,31.35675692,200.96,200.95,0.03]
[1756569916717,4.68675692,200.96,200.95,0.03]
[1756569917936,26.0,200.96,200.95,0.03]
[1756569918231,30.68675692,200.96,200.95,0.03]
[1756569918737,0.06,200.99,200.95,0.03]
[1756569918911,4.68675692,200.97,200.95,0.03]
[1756569919312,0.06,200.99,200.95,0.03]
[1756569919631,30.68675692,200.98,200.95,0.03]
[1756569920014,0.06,200.99,200.95,0.03]
[1756569920312,0.06,200.99,200.96,0.69]
[1756569920939,0.06,200.99,200.96,6.35661]
[1756569921312,0.06,200.99,200.96,5.66661]
[1756569921313,4.68675692,200.97,200.96,5.66661]
[1756569921526,5.35675692,200.97,200.95,0.03]
[1756569921729,5.35675692,200.96,200.95,0.03]
[1756569925160,5.64611464,200.96,200.95,0.03]
[1756569925320,10.33287156,200.96,200.95,0.03]
[1756569926641,53.35192493,200.96,200.95,0.03]
[1756569927337,49.17287156,200.96,200.95,0.03]
[1756569927726,14.51438265,200.96,200.95,0.03]
[1756569927925,53.35438265,200.96,200.95,0.03]
[1756569928338,49.17287156,200.96,200.95,0.03]
[1756569930241,74.38420383,200.96,200.95,0.03]
[1756569930426,35.54420383,200.96,200.95,0.03]
[1756569930924,35.54426973,200.96,200.95,0.03]
[1756569931128,40.52031847,200.96,200.95,0.03]
[1756569931441,10.33287156,200.96,200.95,0.03]
[1756569931939,49.17287156,200.96,200.95,0.03]
[1756569932335,44.48611464,200.96,200.95,0.03]
[1756569932540,49.17287156,200.96,200.95,0.03]
[1756569934848,54.72284598,200.96,200.95,0.03]
[1756569935747,54.74284598,200.96,200.95,0.03]
[1756569935934,49.19287156,200.96,200.95,0.03]
[1756569936437,54.74284598,200.96,200.95,0.03]
[1756569937334,49.19287156,200.96,200.95,0.03]
[1756569938249,54.74284598,200.96,200.95,0.03]
[1756569939330,15.88284598,200.96,200.95,0.03]
[1756569939632,26.0,200.94,200.93,0.03]
[1756569939833,75.13366898,200.94,200.93,0.03]
[1756569940165,75.78366898,200.94,200.93,0.03]
[1756569940364,26.0,200.91,200.9,0.03]
[1756569940533,79.82005686,200.91,200.9,0.03]
[1756569941039,80.47005686,200.91,200.9,0.03]
[1756569941547,85.4474099,200.91,200.9,0.03]
[1756569943253,79.86086688,200.91,200.9,0.03]
[1756569943548,85.4474099,200.91,200.9,0.03]
[1756569944354,85.4474099,200.91,200.88,0.03]
[1756569944355,99.04300391,200.91,200.88,0.03]
[1756569944539,26.0,200.87,200.86,0.03]
[1756569944729,69.54675692,200.87,200.86,0.03]
[1756569944935,70.19675692,200.87,200.86,0.03]
[1756569945151,70.19675692,200.87,200.83,0.03]
[1756569945357,4.68675692,200.86,200.83,0.03]
[1756569945742,5.33675692,200.86,200.83,0.03]
[1756569946753,26.0,200.84,200.83,0.03]
[1756569946958,73.72716651,200.84,200.83,0.03]
[1756569947262,70.19675692,200.84,200.83,0.03]
[1756569948738,75.17584475,200.84,200.83,0.03]
[1756569948934,93.45819568,200.84,200.81,0.03]
[1756569949149,9.37351384,200.82,200.81,0.03]
[1756569949353,48.23351384,200.82,200.81,0.03]
[1756569949549,48.88351384,200.82,200.81,0.03]
[1756569950067,53.86309754,200.82,200.81,0.03]
[1756569950646,67.45869155,200.82,200.81,0.03]
[1756569952545,28.59869155,200.82,200.81,0.03]
[1756569952866,67.45869155,200.82,200.81,0.03]
[1756569953945,62.77193463,200.82,200.81,0.03]
[1756569956280,67.45869155,200.82,200.81,1e-08]
[1756569956777,28.59869155,200.82,200.81,1e-08]
[1756569956948,67.45869155,200.82,200.81,1e-08]
[1756569957772,66.95869155,200.82,200.81,1e-08]
[1756569959275,26.0,200.79,200.78,0.03]
[1756569959473,83.14235093,200.79,200.78,0.03]
[1756569959680,83.79235093,200.79,200.78,0.03]
[1756569960385,83.81235093,200.79,200.78,0.03]
[1756569961273,13.59559401,200.78,200.76,0.03]
[1756569961446,43.56675692,200.77,200.76,0.03]
[1756569961644,44.23675692,200.77,200.76,0.03]
[1756569961852,26.0,200.74,200.69,0.71]
[1756569962056,26.0,200.7,200.69,0.71]
[1756569962272,26.0,200.7,200.65,4.68675692]
[1756569962273,30.68675692,200.7,200.65,4.68675692]
[1756569962572,4.68675692,200.69,200.66,0.71]
[1756569962779,4.68675692,200.68,200.67,0.71]
[1756569962958,26.0,200.67,200.61,4.68675692]
[1756569963273,26.0,200.66,200.61,4.98474747]
[1756569963571,26.0,200.69,200.65,4.68675692]
[1756569963777,26.0,200.69,200.67,4.68675692]
[1756569963951,26.0,200.69,200.62,13.59559401]
[1756569964152,26.0,200.69,200.66,4.68675692]
[1756569964768,4.68675692,200.71,200.66,4.68675692]
[1756569964967,4.68675692,200.71,200.68,4.9830576]
[1756569964968,26.0,200.71,200.68,4.9830576]
[1756569965272,26.0,200.71,200.69,0.24]
[1756569965662,26.0,200.69,200.65,0.24]
[1756569965858,26.0,200.67,200.65,0.24]
[1756569966058,26.0,200.67,200.66,0.24]
[1756569966585,4.68675692,200.68,200.66,0.24]
[1756569967565,4.68675692,200.68,200.64,0.24]
[1756569967773,4.68675692,200.68,200.65,0.24]
[1756569967967,4.68675692,200.67,200.63,0.24]
[1756569968368,4.68675692,200.68,200.64,0.24]
[1756569968567,4.68675692,200.69,200.64,4.92675692]
[1756569968863,26.0,200.7,200.62,4.98435494]
[1756569968864,4.68675692,200.68,200.65,0.24]
[1756569969383,4.68675692,200.68,200.64,4.98398211]
[1756569969759,4.68675692,200.68,200.65,0.24]
[1756569970669,4.68675692,200.66,200.6,95.28]
[1756569970980,4.68675692,200.66,200.61,4.92675692]
[1756569971185,4.68675692,200.66,200.62,0.24]
[1756569971381,4.68675692,200.67,200.63,0.24]
[1756569971694,4.68675692,200.68,200.63,4.92675692]
[1756569971849,4.68675692,200.67,200.63,0.24]
[1756569973762,4.68675692,200.67,200.63,5.22422926]
[1756569975289,4.68675692,200.67,200.62,5.01449232]
[1756569975497,4.68675692,200.67,200.63,0.24]
[1756569976282,4.68675692,200.66,200.62,5.01449232]
[1756569976483,4.68675692,200.66,200.62,5.25449232]
[1756569976683,4.68675692,200.67,200.63,0.24]
[1756569977165,0.73,200.69,200.64,0.24]
[1756569977365,4.68675692,200.67,200.63,0.24]
[1756569977785,4.68675692,200.66,200.62,5.01449232]
[1756569978185,5.35675692,200.66,200.62,5.01449232]
[1756569978880,5.35675692,200.66,200.62,0.03]
[1756569979087,0.67,200.65,200.62,0.03]
[1756569979588,0.67,200.64,200.62,0.03]
[1756569979790,5.35675692,200.65,200.62,0.03]
[1756569980489,4.68675692,200.63,200.62,0.03]
[1756569981288,5.35675692,200.63,200.62,0.03]
[1756569981992,0.67,200.63,200.62,0.03]
[1756569982171,5.35675692,200.63,200.62,0.03]
[1756569984396,26.67,200.63,200.62,0.03]
[1756569984598,26.0,200.66,200.62,4.95675692]
[1756569984802,26.0,200.66,200.64,4.68675692]
[1756569985178,5.41675692,200.69,200.64,4.68675692]
[1756569985396,4.68675692,200.68,200.63,39.12]
[1756569985608,0.06,200.69,200.64,0.24]
[1756569985808,0.06,200.69,200.67,4.68675692]
[1756569986014,0.06,200.69,200.68,4.68675692]
[1756569986302,0.06,200.69,200.68,57.40235093]
[1756569986594,0.06,200.69,200.68,18.52235093]
[1756569986795,0.06,200.69,200.68,57.40235093]
[1756569986987,0.06,200.69,200.68,18.52235093]
[1756569987183,0.06,200.69,200.68,57.40235093]
[1756569987800,0.06,200.69,200.68,62.38540853]
[1756569988508,0.06,200.69,200.66,43.86331651]
[1756569988705,0.06,200.69,200.66,48.55007343]
[1756569988990,0.06,200.69,200.67,4.68675692]
[1756569989193,0.06,200.69,200.68,4.68675692]
[1756569989380,0.06,200.69,200.68,4.92675692]
[1756569989798,0.06,200.69,200.68,9.90981452]
[1756569990108,0.06,200.72,200.68,22.36745853]
[1756569990405,0.06,200.72,200.71,18.28235093]
[1756569990781,0.06,200.72,200.71,18.52235093]
[1756569991703,0.06,200.74,200.72,13.59559401]
[1756569992008,0.06,200.74,200.73,57.16235093]
[1756569992215,0.06,200.74,200.73,57.40235093]
[1756569992394,0.06,200.74,200.73,57.16235093]
[1756569992777,0.06,200.74,200.73,57.40235093]
[1756569993092,0.06,200.74,200.73,57.16235093]
[1756569994619,0.06,200.74,200.73,62.1441673]
[1756569994773,0.06,200.74,200.73,77.1205793]
[1756569995106,0.06,200.74,200.73,199.3605793]
[1756569995306,0.06,200.74,200.73,160.2405793]
[1756569995494,0.06,200.74,200.73,199.1205793]
[1756569995702,0.06,200.74,200.73,160.2405793]
[1756569995900,0.06,200.74,200.73,199.1205793]
[1756569996509,0.74,200.74,200.73,19.95822837]
[1756569996708,0.06,200.74,200.73,48.54857329]
[1756569997020,0.06,200.74,200.73,100.16181637]
[1756569998438,0.06,200.74,200.73,104.82857329]
[1756569998720,0.06,200.74,200.73,100.14181637]
[1756569998929,0.06,200.74,200.73,104.82857329]
[1756569999603,0.74,200.74,200.73,104.82857329]
[1756570000018,0.74,200.74,200.73,95.16]
[1756570002115,0.06,200.74,200.73,95.16]
[1756570002513,0.06,200.74,200.73,100.14181637]
[1756570003018,0.06,200.74,200.73,43.84181637]
[1756570003512,0.74,200.74,200.73,38.86]
[1756570004216,5.42675692,200.74,200.73,38.86]
[1756570004622,0.74,200.74,200.73,38.86]
[1756570005008,0.06,200.74,200.73,38.86]
[1756570005516,0.74,200.74,200.73,38.86]
[1756570006324,0.74,200.74,200.7,9.66923631]
[1756570006494,0.68,200.73,200.71,38.86]
[1756570007426,0.06,200.74,200.71,43.54675692]
[1756570007609,0.74,200.74,200.71,43.54675692]
[1756570008124,0.74,200.74,200.71,48.52882753]
[1756570008424,0.74,200.74,200.71,43.84207061]
[1756570008617,0.74,200.74,200.72,4.68675692]
[1756570008921,0.06,200.74,200.73,38.86]
[1756570010120,0.06,200.74,200.73,118.4241673]
[1756570010311,0.06,200.74,200.73,118.6641673]
[1756570010509,0.06,200.74,200.73,133.6413273]
[1756570011514,0.06,200.74,200.73,65.96857329]
[1756570011724,0.06,200.74,200.73,104.82857329]
[1756570012015,0.06,200.74,200.73,120.4213213]
[1756570014226,0.06,200.74,200.73,115.73456438]
[1756570014424,0.06,200.74,200.73,76.87456438]
[1756570014722,0.06,200.74,200.73,120.4213213]
[1756570015311,0.06,200.74,200.73,106.82572729]
[1756570015515,0.74,200.74,200.73,102.13897037]
[1756570015709,0.74,200.74,200.73,104.82857329]
[1756570015911,0.06,200.74,200.73,100.14181637]
[1756570016111,0.74,200.74,200.73,104.82857329]
[1756570017629,0.06,200.74,200.73,118.4241673]
[1756570018008,0.06,200.74,200.73,120.4211223]
[1756570019511,0.06,200.74,200.73,81.5611223]
[1756570019714,0.06,200.74,200.73,120.4211223]
[1756570020223,0.74,200.74,200.73,56.3]
[1756570020423,0.74,200.74,200.73,95.16]
[1756570020631,5.42675692,200.74,200.73,95.16]
[1756570020813,0.74,200.74,200.73,95.16]
[1756570021705,0.06,200.74,200.73,104.82857329]
[1756570022721,0.06,200.74,200.73,106.82562729]
[1756570022906,0.06,200.74,200.73,120.4212213]
[1756570024129,0.06,200.74,200.73,120.6612213]
[1756570024518,0.06,200.77,200.73,133.11576222]
[1756570024717,0.06,200.77,200.76,13.59559401]
[1756570024904,0.06,200.77,200.76,57.14235093]
[1756570025116,0.06,200.77,200.76,57.38235093]
[1756570025323,0.06,200.77,200.76,72.35652093]
[1756570025643,0.67,200.86,200.77,13.59559401]
[1756570025847,0.67,200.86,200.84,9.66584475]
[1756570026055,0.67,200.86,200.84,48.52584475]
[1756570026213,0.67,200.87,200.84,48.52584475]
[1756570028537,0.06,200.88,200.84,62.12143876]
[1756570028746,0.06,200.88,200.84,62.36143876]
[1756570029030,0.06,200.88,200.84,184.12143876]
[1756570031247,0.06,200.88,200.84,240.42143876]
[1756570031947,1e-08,200.85,200.84,62.36143876]
[1756570032166,0.06,200.88,200.85,13.59559401]
[1756570032328,0.06,200.88,200.87,18.28235093]
[1756570032515,1e-08,200.88,200.87,18.28235093]
[1756570032716,1e-08,200.88,200.87,57.12235093]
[1756570033416,1e-08,200.88,200.87,59.11771193]
[1756570034246,1e-08,200.88,200.87,64.09605613]
[1756570034417,1e-08,200.88,200.87,25.25605613]
[1756570034620,0.67000001,200.88,200.87,6.9737052]
[1756570034818,0.67000001,200.88,200.87,11.66046212]
[1756570035018,0.67000001,200.88,200.87,50.50046212]
[1756570036720,0.67000001,200.88,200.87,11.66046212]
[1756570036919,0.67000001,200.88,200.87,50.50046212]
[1756570037922,1e-08,200.88,200.87,50.50046212]
[1756570038244,0.67000001,200.88,200.87,50.50046212]
[1756570038425,1e-08,200.88,200.87,50.50046212]
[1756570038626,1e-08,200.88,200.87,120.39605613]
[1756570039030,1e-08,200.88,200.87,115.70929921]
[1756570039346,1e-08,200.88,200.87,120.39605613]
[1756570039844,1e-08,200.88,200.87,242.39605613]
[1756570040917,1e-08,200.88,200.87,81.55605613]
[1756570041120,1e-08,200.88,200.87,120.39605613]
[1756570042848,1e-08,200.88,200.87,120.63605613]
[1756570043543,1e-08,200.88,200.87,125.32281305]
[1756570044049,1e-08,200.88,200.87,247.32281305]
[1756570044242,1e-08,200.88,200.87,242.63605613]
[1756570044544,1e-08,200.9,200.89,39.59559401]
[1756570044749,1e-08,200.9,200.89,144.00910785]
[1756570044938,1e-08,200.9,200.89,139.32235093]
[1756570045144,1e-08,200.9,200.89,141.31741293]
[1756570046751,1e-08,200.9,200.89,150.98201842]
[1756570046954,1e-08,200.9,200.89,146.2952615]
[1756570049553,1e-08,200.9,200.89,150.98201842]
[1756570050453,1e-08,200.91,200.89,272.98201842]
[1756570050632,1e-08,200.91,200.9,22.96910785]
[1756570051155,1e-08,200.91,200.9,24.96407085]
[1756570052668,1e-08,200.91,200.9,29.94167164]
[1756570052950,1e-08,200.91,200.9,30.43943171]
[1756570053644,0.2,200.95,200.91,13.59559401]
[1756570053964,0.2,200.95,200.94,18.28235093]
[1756570053965,0.87,200.95,200.94,18.28235093]
[1756570054267,1e-08,200.95,200.94,113.30235093]
[1756570054427,0.67,201.0,200.96,4.97611464]
[1756570054630,0.67,201.0,200.98,4.68675692]
[1756570055162,0.73,201.01,200.98,4.68675692]
[1756570055331,0.73,201.01,200.98,6.68102392]
[1756570056453,0.73,201.01,200.98,128.68102392]
[1756570056638,0.73,201.01,200.98,133.65664338]
[1756570057042,0.73,201.01,200.98,189.85664338]
[1756570059653,0.73,201.01,200.98,228.67664338]
[1756570059954,0.73,201.01,200.98,185.16988646]
[1756570060268,0.73,201.01,200.98,228.65664338]
[1756570060458,0.73,200.99,200.98,228.65664338]
[1756570062843,0.73,200.99,200.98,228.65664338]
[1756570063534,0.73,200.99,200.98,106.65664338]
[1756570063957,0.73,200.99,200.98,67.85664338]
[1756570064269,0.73,200.99,200.98,106.65664338]
[1756570064633,0.06,200.99,200.98,106.65664338]
[1756570066532,0.06,200.99,200.98,228.65664338]
[1756570069540,0.06,200.99,200.98,106.65664338]
[1756570072678,0.06,200.99,200.98,228.65664338]
[1756570074148,0.06,200.99,200.98,189.85664338]
[1756570074359,0.06,200.99,200.98,228.65664338]
[1756570075450,1e-08,200.99,200.98,268.25223739]
[1756570075653,1e-08,200.99,200.98,268.49223739]
[1756570078440,1e-08,201.01,201.0,22.96910785]
[1756570078646,1e-08,201.02,201.01,39.59559401]
[1756570078956,1e-08,201.02,201.01,100.48235093]
[1756570079156,1e-08,201.02,201.01,102.47612093]
[1756570079663,1e-08,201.02,201.01,107.4509978]
[1756570080252,0.06,201.11,201.01,120.55818997]
[1756570080472,4.88675692,201.09,201.01,102.27583904]
[1756570080675,4.74675692,201.06,201.02,52.37559401]
[1756570081052,4.74675692,201.06,201.03,4.746757]
[1756570081369,4.68675692,201.05,201.03,4.746757]
[1756570081555,4.68675692,201.04,201.02,56.2]
[1756570081757,4.68675692,201.05,201.03,38.78]
[1756570082369,0.66,201.04,201.03,38.78]
[1756570083953,5.34675692,201.04,201.03,38.78]
[1756570084770,5.34675692,201.04,201.01,4.97482521]
[1756570084962,0.66,201.03,201.02,38.78]
[1756570085564,5.34675692,201.03,201.02,38.78]
[1756570085957,5.34675692,201.03,201.0,4.97512437]
[1756570086276,5.34675692,201.02,201.01,38.78]
[1756570087855,0.66,201.02,201.01,38.78]
[1756570088183,0.66,201.02,201.01,43.75487687]
[1756570090162,0.66,201.02,200.99,4.686757]
[1756570090363,0.66,201.01,201.0,38.78]
[1756570090565,0.66,201.01,200.95,19.96634291]
[1756570090566,5.34675692,201.01,200.95,19.96634291]
[1756570090764,4.68675692,200.98,200.96,38.78]
[1756570090965,0.66,200.97,200.96,38.78]
[1756570091367,0.66,200.99,200.95,9.69311683]
[1756570091680,0.66,200.98,200.96,38.78]
[1756570092359,0.66,200.97,200.96,43.75588905]
[1756570092562,5.34675692,200.97,200.95,0.03]
[1756570092788,0.66,200.98,200.96,38.78]
[1756570093788,0.66,200.97,200.96,38.78]
[1756570094669,5.34675692,200.97,200.95,0.03]
[1756570094858,5.34675692,200.97,200.96,38.78]
[1756570095278,5.34675692,200.97,200.95,0.03]
[1756570095481,4.68675692,200.96,200.95,0.03]
[1756570095684,0.66,200.97,200.95,38.81]
[1756570095876,0.66,200.96,200.95,38.81]
[1756570096274,0.66,200.98,200.95,43.78636227]
[1756570096872,5.34675692,200.97,200.95,38.81]
[1756570097082,0.66,200.96,200.95,43.78631914]
[1756570097276,0.66,200.96,200.95,38.81]
[1756570098890,5.34675692,200.96,200.95,0.03]
[1756570099285,5.34675692,200.96,200.95,38.81]
[1756570100183,5.34675692,200.96,200.95,0.03]
[1756570102382,5.34675692,200.96,200.95,38.81]
[1756570104477,0.66,200.96,200.95,0.03]
[1756570104687,5.34675692,200.96,200.95,0.03]
[1756570105888,10.32287156,200.96,200.95,0.03]
[1756570107805,0.66,200.96,200.95,0.03]
[1756570107981,5.34675692,200.96,200.95,0.03]
[1756570109883,26.0,200.97,200.95,0.03]
[1756570110086,4.68675692,200.97,200.95,0.03]
[1756570110494,0.66,200.96,200.95,0.03]
[1756570110982,5.34675692,200.96,200.95,0.03]
[1756570116794,31.34675692,200.96,200.95,0.03]
[1756570121509,36.32287156,200.96,200.95,0.03]
[1756570124626,31.34675692,200.96,200.95,0.03]
[1756570124835,30.68675692,200.96,200.95,0.03]
[1756570127933,31.34675692,200.96,200.95,0.03]
[1756570128131,30.68675692,200.96,200.95,0.03]
[1756570128329,30.68675692,200.97,200.95,0.75]
[1756570129173,4.183607,201.02,200.95,0.03]
[1756570129462,4.183607,201.02,200.97,4.68675692]
[1756570129638,5.34675692,201.04,200.98,0.72]
[1756570129844,31.34675692,201.04,200.99,4.68675692]
[1756570130050,31.34675692,201.04,200.99,10.3818919]
[1756570130554,4.68675692,201.03,200.99,5.69513498]
[1756570130928,31.34675692,201.04,201.0,38.78]
[1756570131128,4.74675692,201.05,201.01,0.72]
[1756570131344,4.68675692,201.04,201.0,38.78]